[Event "Titled Tuesday Blitz March 14 Early 2023"]
[White "Nguyen, Ngoc Truong Son"]
[Black "Smirnov, Pavel"]
[WhiteFideId "12401110"]
[BlackFideId "4123425"]
[WhiteElo "2571"]
[BlackElo "2519"]
[Result "1-0"]
[Round "10"]
[TimeControl "180+2"]
[Date "2023.03.14"]
[WhiteClock "0:00:10"]
[BlackClock "0:00:11"]

1. d4 {[%clk 0:02:55]}  Nf6 {[%clk 0:03:00]} 2. c4 {[%clk 0:02:55]}  d5 {[%clk 0:03:00]} 3. Nc3 {[%clk 0:02:56]}  c6 {[%clk 0:02:55]} 4. Nf3 {[%clk 0:02:54]}  e6 {[%clk 0:02:55]} 5. Bg5 {[%clk 0:02:53]}  h6 {[%clk 0:02:53]} 6. Bh4 {[%clk 0:02:53]}  dxc4 {[%clk 0:02:52]} 7. e4 {[%clk 0:02:53]}  b5 {[%clk 0:02:52]} 8. e5 {[%clk 0:02:53]}  g5 {[%clk 0:02:53]} 9. Nxg5 {[%clk 0:02:52]}  hxg5 {[%clk 0:02:53]} 10. Bxg5 {[%clk 0:02:53]}  Nbd7 {[%clk 0:02:53]} 11. exf6 {[%clk 0:02:47]}  Bb7 {[%clk 0:02:52]} 12. g3 {[%clk 0:02:36]}  c5 {[%clk 0:02:52]} 13. d5 {[%clk 0:02:36]}  Qb6 {[%clk 0:02:52]} 14. Bg2 {[%clk 0:02:36]}  O-O-O {[%clk 0:02:53]} 15. O-O {[%clk 0:02:33]}  b4 {[%clk 0:02:52]} 16. Na4 {[%clk 0:02:32]}  Qa6 {[%clk 0:02:43]} 17. a3 {[%clk 0:02:29]}  Bxd5 {[%clk 0:02:40]} 18. Bxd5 {[%clk 0:02:25]}  Ne5 {[%clk 0:02:40]} 19. axb4 {[%clk 0:02:19]}  Rxd5 {[%clk 0:02:38]} 20. Qe2 {[%clk 0:02:13]}  cxb4 {[%clk 0:02:38]} 21. Nc3 {[%clk 0:01:51]}  Qc6 {[%clk 0:02:36]} 22. Ne4 {[%clk 0:01:20]}  Rd3 {[%clk 0:02:08]} 23. f3 {[%clk 0:01:15]}  Bc5+ {[%clk 0:01:53]} 24. Kg2 {[%clk 0:01:11]}  Bd4 {[%clk 0:01:49]} 25. Ra5 {[%clk 0:01:04]}  Rb3 {[%clk 0:01:44]} 26. Nd2 {[%clk 0:00:32]}  Rxb2 {[%clk 0:01:43]} 27. Rxe5 {[%clk 0:00:32]}  Bxe5 {[%clk 0:01:42]} 28. Qxe5 {[%clk 0:00:33]}  c3 {[%clk 0:01:43]} 29. Rf2 {[%clk 0:00:34]}  c2 {[%clk 0:01:22]} 30. Ne4 {[%clk 0:00:25]}  c1=Q {[%clk 0:01:22]} 31. Rxb2 {[%clk 0:00:20]}  Qd1 {[%clk 0:01:02]} 32. Rd2 {[%clk 0:00:19]}  Qdc1 {[%clk 0:00:18]} 33. Bf4 {[%clk 0:00:15]}  Kb7 {[%clk 0:00:16]} 34. Rd7+ {[%clk 0:00:11]}  Qxd7 {[%clk 0:00:16]} 35. Bxc1 {[%clk 0:00:11]}  Qd1 {[%clk 0:00:16]} 36. Qb5+ {[%clk 0:00:10]}  Kc8 {[%clk 0:00:13]} 37. Qc6+ {[%clk 0:00:10]}  Kd8 {[%clk 0:00:13]} 38. Qa8+ {[%clk 0:00:10]}  Kd7 {[%clk 0:00:13]} 39. Qb7+ {[%clk 0:00:09]}  Kd8 {[%clk 0:00:12]} 40. Qe7+ {[%clk 0:00:10]}  Kc8 {[%clk 0:00:11]} 41. Nd6+ {[%clk 0:00:10]} 1-0


[Site "https://www.chess.com"]

[Event "Titled Tuesday Blitz March 14 Early 2023"]
[White "Liyanage, Ranindu Dilshan"]
[Black "Zhigalko, Sergei"]
[WhiteFideId "9915834"]
[BlackFideId "13502956"]
[WhiteElo "2199"]
[BlackElo "2626"]
[Result "1/2-1/2"]
[Round "10"]
[TimeControl "180+2"]
[Date "2023.03.14"]
[WhiteClock "0:00:09"]
[BlackClock "0:00:08"]

1. e4 {[%clk 0:03:00]}  c5 {[%clk 0:02:58]} 2. Nc3 {[%clk 0:03:01]}  Nc6 {[%clk 0:02:58]} 3. Bb5 {[%clk 0:03:01]}  Nd4 {[%clk 0:02:58]} 4. Bc4 {[%clk 0:03:02]}  e6 {[%clk 0:02:58]} 5. Nge2 {[%clk 0:03:03]}  Nf6 {[%clk 0:02:58]} 6. O-O {[%clk 0:03:02]}  a6 {[%clk 0:02:58]} 7. a4 {[%clk 0:03:02]}  Qc7 {[%clk 0:02:53]} 8. d3 {[%clk 0:02:58]}  Be7 {[%clk 0:02:53]} 9. Ba2 {[%clk 0:02:54]}  Nc6 {[%clk 0:02:51]} 10. f4 {[%clk 0:02:51]}  Nb4 {[%clk 0:02:50]} 11. e5 {[%clk 0:02:42]}  Nxa2 {[%clk 0:02:42]} 12. Rxa2 {[%clk 0:02:42]}  Nd5 {[%clk 0:02:41]} 13. Nxd5 {[%clk 0:02:06]}  exd5 {[%clk 0:02:41]} 14. f5 {[%clk 0:02:00]}  Qxe5 {[%clk 0:02:33]} 15. d4 {[%clk 0:01:46]}  cxd4 {[%clk 0:02:15]} 16. Nxd4 {[%clk 0:01:21]}  O-O {[%clk 0:02:14]} 17. c3 {[%clk 0:01:19]}  Bc5 {[%clk 0:02:06]} 18. b4 {[%clk 0:01:07]}  Bxd4+ {[%clk 0:01:57]} 19. Qxd4 {[%clk 0:00:45]}  d6 {[%clk 0:01:52]} 20. Bf4 {[%clk 0:00:21]}  Qxd4+ {[%clk 0:01:46]} 21. cxd4 {[%clk 0:00:22]}  Bxf5 {[%clk 0:01:45]} 22. Bxd6 {[%clk 0:00:23]}  Rfd8 {[%clk 0:01:46]} 23. Be7 {[%clk 0:00:22]}  Bd3 {[%clk 0:01:37]} 24. Bxd8 {[%clk 0:00:12]}  Bxf1 {[%clk 0:01:37]} 25. Kxf1 {[%clk 0:00:13]}  Rxd8 {[%clk 0:01:36]} 26. Rc2 {[%clk 0:00:13]}  g6 {[%clk 0:01:25]} 27. Rc7 {[%clk 0:00:14]}  Re8 {[%clk 0:01:23]} 28. Rd7 {[%clk 0:00:14]}  Rc8 {[%clk 0:01:03]} 29. Rxb7 {[%clk 0:00:10]}  Rc4 {[%clk 0:01:02]} 30. Ke2 {[%clk 0:00:08]}  Rxd4 {[%clk 0:01:02]} 31. Ke3 {[%clk 0:00:08]}  Rc4 {[%clk 0:00:37]} 32. a5 {[%clk 0:00:08]}  h5 {[%clk 0:00:32]} 33. b5 {[%clk 0:00:06]}  axb5 {[%clk 0:00:31]} 34. Rxb5 {[%clk 0:00:07]}  d4+ {[%clk 0:00:31]} 35. Kd3 {[%clk 0:00:07]}  Ra4 {[%clk 0:00:32]} 36. Rd5 {[%clk 0:00:07]}  Kg7 {[%clk 0:00:31]} 37. g3 {[%clk 0:00:06]}  Kf6 {[%clk 0:00:30]} 38. Rxd4 {[%clk 0:00:06]}  Rxa5 {[%clk 0:00:30]} 39. Ke3 {[%clk 0:00:05]}  Rf5 {[%clk 0:00:30]} 40. h4 {[%clk 0:00:05]}  Ke6 {[%clk 0:00:28]} 41. Ra4 {[%clk 0:00:04]}  Rf1 {[%clk 0:00:28]} 42. Ra6+ {[%clk 0:00:04]}  Kf5 {[%clk 0:00:28]} 43. Ra4 {[%clk 0:00:05]}  Ke5 {[%clk 0:00:24]} 44. Rb4 {[%clk 0:00:05]}  Kf6 {[%clk 0:00:18]} 45. Ra4 {[%clk 0:00:05]}  Kg7 {[%clk 0:00:18]} 46. Rb4 {[%clk 0:00:05]}  Rf5 {[%clk 0:00:18]} 47. Ra4 {[%clk 0:00:06]}  f6 {[%clk 0:00:18]} 48. Ra7+ {[%clk 0:00:05]}  Kh6 {[%clk 0:00:18]} 49. Ra6 {[%clk 0:00:06]}  g5 {[%clk 0:00:15]} 50. hxg5+ {[%clk 0:00:05]}  Kxg5 {[%clk 0:00:16]} 51. Ra4 {[%clk 0:00:06]}  Rf1 {[%clk 0:00:10]} 52. Rb4 {[%clk 0:00:06]}  Rf5 {[%clk 0:00:06]} 53. Ra4 {[%clk 0:00:06]}  Rb5 {[%clk 0:00:06]} 54. Rc4 {[%clk 0:00:06]}  f5 {[%clk 0:00:06]} 55. Ra4 {[%clk 0:00:06]}  Rb3+ {[%clk 0:00:05]} 56. Kf2 {[%clk 0:00:06]}  Rc3 {[%clk 0:00:06]} 57. Kg2 {[%clk 0:00:06]}  Rc8 {[%clk 0:00:05]} 58. Ra5 {[%clk 0:00:06]}  Rc2+ {[%clk 0:00:04]} 59. Kf3 {[%clk 0:00:06]}  Rc3+ {[%clk 0:00:05]} 60. Kf2 {[%clk 0:00:04]}  Rc4 {[%clk 0:00:06]} 61. Kf3 {[%clk 0:00:04]}  Rb4 {[%clk 0:00:05]} 62. Rc5 {[%clk 0:00:04]}  h4 {[%clk 0:00:04]} 63. gxh4+ {[%clk 0:00:04]}  Rxh4 {[%clk 0:00:05]} 64. Rc8 {[%clk 0:00:04]}  Rh3+ {[%clk 0:00:06]} 65. Kf2 {[%clk 0:00:04]}  Ra3 {[%clk 0:00:06]} 66. Rc4 {[%clk 0:00:04]}  Ra2+ {[%clk 0:00:06]} 67. Kf3 {[%clk 0:00:04]}  Ra3+ {[%clk 0:00:07]} 68. Kf2 {[%clk 0:00:04]}  Kf6 {[%clk 0:00:08]} 69. Rb4 {[%clk 0:00:04]}  Ke5 {[%clk 0:00:08]} 70. Rh4 {[%clk 0:00:05]}  Rb3 {[%clk 0:00:07]} 71. Ra4 {[%clk 0:00:05]}  Kf6 {[%clk 0:00:07]} 72. Ra5 {[%clk 0:00:05]}  Kg5 {[%clk 0:00:08]} 73. Ra4 {[%clk 0:00:06]}  f4 {[%clk 0:00:07]} 74. Ra8 {[%clk 0:00:06]}  Rb2+ {[%clk 0:00:08]} 75. Kf3 {[%clk 0:00:05]}  Rb3+ {[%clk 0:00:09]} 76. Kf2 {[%clk 0:00:06]}  Kf5 {[%clk 0:00:04]} 77. Rf8+ {[%clk 0:00:06]}  Ke4 {[%clk 0:00:05]} 78. Re8+ {[%clk 0:00:07]}  Kd5 {[%clk 0:00:06]} 79. Rd8+ {[%clk 0:00:07]}  Ke6 {[%clk 0:00:06]} 80. Rf8 {[%clk 0:00:07]}  Ke5 {[%clk 0:00:06]} 81. Re8+ {[%clk 0:00:08]}  Kf5 {[%clk 0:00:07]} 82. Rf8+ {[%clk 0:00:08]}  Kg4 {[%clk 0:00:07]} 83. Rg8+ {[%clk 0:00:09]}  Kf5 {[%clk 0:00:08]} 84. Rf8+ {[%clk 0:00:09]} 1/2-1/2


[Site "https://www.chess.com"]

[Event "Titled Tuesday Blitz March 14 Early 2023"]
[White "Madaminov, Mukhiddin"]
[Black "Rohith Krishna S"]
[WhiteFideId "14210703"]
[BlackFideId "46617051"]
[WhiteElo "2511"]
[BlackElo "2270"]
[Result "1-0"]
[Round "10"]
[TimeControl "180+2"]
[Date "2023.03.14"]
[WhiteClock "0:00:30"]
[BlackClock "0:00:32"]

1. d4 {[%clk 0:03:00]}  Nf6 {[%clk 0:02:59]} 2. Nc3 {[%clk 0:03:01]}  d5 {[%clk 0:02:59]} 3. Bf4 {[%clk 0:03:01]}  c6 {[%clk 0:03:00]} 4. e3 {[%clk 0:03:01]}  Bf5 {[%clk 0:02:58]} 5. f3 {[%clk 0:03:01]}  Nbd7 {[%clk 0:02:56]} 6. g4 {[%clk 0:03:02]}  Bg6 {[%clk 0:02:56]} 7. h4 {[%clk 0:03:02]}  h5 {[%clk 0:02:55]} 8. g5 {[%clk 0:03:03]}  Ng8 {[%clk 0:02:56]} 9. Bd3 {[%clk 0:02:56]}  Bxd3 {[%clk 0:02:55]} 10. cxd3 {[%clk 0:02:52]}  e6 {[%clk 0:02:55]} 11. Nge2 {[%clk 0:02:48]}  Ne7 {[%clk 0:02:54]} 12. e4 {[%clk 0:02:48]}  Ng6 {[%clk 0:02:54]} 13. Bg3 {[%clk 0:02:47]}  Qb6 {[%clk 0:02:52]} 14. Qc2 {[%clk 0:02:37]}  f5 {[%clk 0:02:50]} 15. gxf6 {[%clk 0:02:33]}  gxf6 {[%clk 0:02:50]} 16. O-O-O {[%clk 0:02:33]}  Bh6+ {[%clk 0:02:47]} 17. Kb1 {[%clk 0:02:32]}  Kf7 {[%clk 0:02:41]} 18. Bd6 {[%clk 0:02:09]}  Bf8 {[%clk 0:02:36]} 19. Bg3 {[%clk 0:02:01]}  Bh6 {[%clk 0:02:36]} 20. Bd6 {[%clk 0:02:01]}  Bf8 {[%clk 0:02:36]} 21. Bxf8 {[%clk 0:02:02]}  Raxf8 {[%clk 0:02:37]} 22. Rdg1 {[%clk 0:01:59]}  Rfg8 {[%clk 0:02:37]} 23. Qd2 {[%clk 0:02:00]}  Qd8 {[%clk 0:02:23]} 24. Qe3 {[%clk 0:01:55]}  Qe7 {[%clk 0:02:09]} 25. Nd1 {[%clk 0:01:47]}  e5 {[%clk 0:02:03]} 26. Nf2 {[%clk 0:01:45]}  b6 {[%clk 0:01:59]} 27. f4 {[%clk 0:01:42]}  Nxf4 {[%clk 0:01:44]} 28. Nxf4 {[%clk 0:01:40]}  exf4 {[%clk 0:01:45]} 29. Qxf4 {[%clk 0:01:41]}  Rxg1+ {[%clk 0:01:45]} 30. Rxg1 {[%clk 0:01:41]}  Rg8 {[%clk 0:01:46]} 31. Rxg8 {[%clk 0:01:37]}  Kxg8 {[%clk 0:01:46]} 32. Qf5 {[%clk 0:01:37]}  Qg7 {[%clk 0:01:39]} 33. exd5 {[%clk 0:01:34]}  cxd5 {[%clk 0:01:34]} 34. Qxd5+ {[%clk 0:01:34]}  Kf8 {[%clk 0:01:35]} 35. a3 {[%clk 0:01:32]}  Qg1+ {[%clk 0:01:32]} 36. Ka2 {[%clk 0:01:32]}  Qxf2 {[%clk 0:01:32]} 37. Qxd7 {[%clk 0:01:30]}  Qxh4 {[%clk 0:01:33]} 38. d5 {[%clk 0:01:30]}  Qd4 {[%clk 0:01:29]} 39. Qe6 {[%clk 0:01:29]}  Qe5 {[%clk 0:01:19]} 40. Qc8+ {[%clk 0:01:24]}  Ke7 {[%clk 0:01:09]} 41. Qb7+ {[%clk 0:01:24]}  Kd8 {[%clk 0:01:09]} 42. Qa8+ {[%clk 0:01:24]}  Kd7 {[%clk 0:01:04]} 43. Qxa7+ {[%clk 0:01:21]}  Kd6 {[%clk 0:01:04]} 44. Qxb6+ {[%clk 0:01:20]}  Kxd5 {[%clk 0:01:05]} 45. a4 {[%clk 0:01:18]}  h4 {[%clk 0:01:02]} 46. a5 {[%clk 0:01:08]}  h3 {[%clk 0:00:59]} 47. a6 {[%clk 0:01:08]}  Qe8 {[%clk 0:00:39]} 48. Qb7+ {[%clk 0:00:53]}  Kd4 {[%clk 0:00:36]} 49. Qb4+ {[%clk 0:00:40]}  Ke3 {[%clk 0:00:32]} 50. Qe1+ {[%clk 0:00:30]} 1-0


[Site "https://www.chess.com"]

[Event "Titled Tuesday Blitz March 14 Early 2023"]
[White "Vakhlamov, Igor L."]
[Black "Samant Aditya S"]
[WhiteFideId "24126748"]
[BlackFideId "35080580"]
[WhiteElo "2400"]
[BlackElo "2362"]
[Result "1-0"]
[Round "10"]
[TimeControl "180+2"]
[Date "2023.03.14"]
[WhiteClock "0:01:15"]
[BlackClock "0:00:05"]

1. e4 {[%clk 0:03:00]}  c5 {[%clk 0:02:59]} 2. Nf3 {[%clk 0:03:01]}  d6 {[%clk 0:03:00]} 3. Nc3 {[%clk 0:03:02]}  Nf6 {[%clk 0:03:00]} 4. d4 {[%clk 0:03:02]}  cxd4 {[%clk 0:03:01]} 5. Qxd4 {[%clk 0:03:03]}  a6 {[%clk 0:03:00]} 6. e5 {[%clk 0:03:02]}  Nc6 {[%clk 0:03:00]} 7. Qa4 {[%clk 0:03:02]}  dxe5 {[%clk 0:03:01]} 8. Nxe5 {[%clk 0:03:03]}  Bd7 {[%clk 0:03:01]} 9. Nxd7 {[%clk 0:03:04]}  Qxd7 {[%clk 0:03:02]} 10. Be3 {[%clk 0:03:02]}  e6 {[%clk 0:02:31]} 11. Rd1 {[%clk 0:03:02]}  Qc8 {[%clk 0:02:22]} 12. g3 {[%clk 0:03:02]}  Be7 {[%clk 0:02:22]} 13. Bg2 {[%clk 0:03:03]}  O-O {[%clk 0:02:22]} 14. O-O {[%clk 0:03:03]}  b5 {[%clk 0:02:18]} 15. Qf4 {[%clk 0:03:00]}  Rb8 {[%clk 0:02:15]} 16. Rfe1 {[%clk 0:01:54]}  Na5 {[%clk 0:01:55]} 17. Ba7 {[%clk 0:01:51]}  Rb7 {[%clk 0:01:25]} 18. Bxb7 {[%clk 0:01:50]}  Qxb7 {[%clk 0:01:26]} 19. Bd4 {[%clk 0:01:50]}  Nc4 {[%clk 0:01:14]} 20. Ne4 {[%clk 0:01:47]}  Nd5 {[%clk 0:01:02]} 21. Qf3 {[%clk 0:01:46]}  e5 {[%clk 0:00:55]} 22. Nc3 {[%clk 0:01:30]}  Rd8 {[%clk 0:00:36]} 23. Bxe5 {[%clk 0:01:16]}  Nxe5 {[%clk 0:00:05]} 24. Rxe5 {[%clk 0:01:15]} 1-0


[Site "https://www.chess.com"]

[Event "Titled Tuesday Blitz March 14 Early 2023"]
[White "Real_OceanStorm"]
[Black "Chen, Justin"]
[BlackFideId "2098199"]
[WhiteElo "2814"]
[BlackElo "2289"]
[Result "1-0"]
[Round "10"]
[TimeControl "180+2"]
[Date "2023.03.14"]
[WhiteClock "0:01:26"]
[BlackClock "0:00:02"]

1. d4 {[%clk 0:03:00]}  d5 {[%clk 0:02:56]} 2. Nf3 {[%clk 0:02:58]}  Nf6 {[%clk 0:02:56]} 3. c4 {[%clk 0:02:59]}  dxc4 {[%clk 0:02:57]} 4. Nc3 {[%clk 0:02:59]}  a6 {[%clk 0:02:48]} 5. e4 {[%clk 0:02:58]}  b5 {[%clk 0:02:48]} 6. d5 {[%clk 0:02:58]}  e6 {[%clk 0:02:43]} 7. Bg5 {[%clk 0:02:57]}  Be7 {[%clk 0:02:40]} 8. a4 {[%clk 0:02:57]}  exd5 {[%clk 0:02:36]} 9. axb5 {[%clk 0:02:52]}  dxe4 {[%clk 0:02:08]} 10. Qxd8+ {[%clk 0:02:51]}  Bxd8 {[%clk 0:02:08]} 11. Ne5 {[%clk 0:02:51]}  O-O {[%clk 0:01:24]} 12. Bxc4 {[%clk 0:02:50]}  Bb7 {[%clk 0:01:22]} 13. O-O {[%clk 0:02:50]}  axb5 {[%clk 0:01:21]} 14. Rxa8 {[%clk 0:02:49]}  Bxa8 {[%clk 0:01:22]} 15. Nxb5 {[%clk 0:02:49]}  Nc6 {[%clk 0:01:14]} 16. Bxf6 {[%clk 0:02:27]}  Bxf6 {[%clk 0:01:03]} 17. Nd7 {[%clk 0:02:27]}  Rc8 {[%clk 0:00:56]} 18. Nxf6+ {[%clk 0:02:27]}  gxf6 {[%clk 0:00:57]} 19. Bd5 {[%clk 0:02:17]}  Nd4 {[%clk 0:00:25]} 20. Bxa8 {[%clk 0:02:17]}  Ne2+ {[%clk 0:00:17]} 21. Kh1 {[%clk 0:02:16]}  Rxa8 {[%clk 0:00:18]} 22. Nxc7 {[%clk 0:02:14]}  Rb8 {[%clk 0:00:17]} 23. Nd5 {[%clk 0:01:36]}  Kg7 {[%clk 0:00:17]} 24. b4 {[%clk 0:01:36]}  Rb5 {[%clk 0:00:15]} 25. Rd1 {[%clk 0:01:35]}  Rb7 {[%clk 0:00:09]} 26. g3 {[%clk 0:01:33]}  f5 {[%clk 0:00:02]} 27. Kg2 {[%clk 0:01:26]}  f4 {[%clk 0:00:02]} 28. gxf4 {[%clk 0:01:25]}  Rd7 {[%clk 0:00:02]} 29. Ne3 {[%clk 0:01:25]}  Rxd1 {[%clk 0:00:02]} 30. Nxd1 {[%clk 0:01:25]}  Nxf4+ {[%clk 0:00:02]} 31. Kf1 {[%clk 0:01:25]}  Nd5 {[%clk 0:00:02]} 32. b5 {[%clk 0:01:25]}  f5 {[%clk 0:00:02]} 33. Ne3 {[%clk 0:01:26]}  Nc3 {[%clk 0:00:02]} 34. b6 {[%clk 0:01:26]} 1-0


[Site "https://www.chess.com"]

[Event "Titled Tuesday Blitz March 14 Early 2023"]
[White "Narayanan, Srinath"]
[Black "Lopez Mulet, Inigo"]
[WhiteFideId "5018420"]
[BlackFideId "22235620"]
[WhiteElo "2438"]
[BlackElo "2289"]
[Result "1-0"]
[Round "10"]
[TimeControl "180+2"]
[Date "2023.03.14"]
[WhiteClock "0:00:21"]
[BlackClock "0:00:29"]

1. Nf3 {[%clk 0:03:00]}  g6 {[%clk 0:02:58]} 2. c4 {[%clk 0:03:00]}  Bg7 {[%clk 0:02:58]} 3. g3 {[%clk 0:03:00]}  e5 {[%clk 0:02:58]} 4. Nc3 {[%clk 0:03:00]}  Nc6 {[%clk 0:02:59]} 5. Bg2 {[%clk 0:03:00]}  h5 {[%clk 0:02:58]} 6. d3 {[%clk 0:03:00]}  h4 {[%clk 0:02:56]} 7. Nxh4 {[%clk 0:02:42]}  Rxh4 {[%clk 0:02:57]} 8. gxh4 {[%clk 0:02:43]}  Qxh4 {[%clk 0:02:57]} 9. Ne4 {[%clk 0:02:44]}  f5 {[%clk 0:02:52]} 10. Bg5 {[%clk 0:02:33]}  Qh5 {[%clk 0:02:51]} 11. Bf3 {[%clk 0:02:33]}  Qh8 {[%clk 0:02:52]} 12. Nc3 {[%clk 0:02:32]}  Nd4 {[%clk 0:02:50]} 13. Nd5 {[%clk 0:02:31]}  Ne6 {[%clk 0:02:50]} 14. h4 {[%clk 0:02:29]}  c6 {[%clk 0:02:49]} 15. Nc3 {[%clk 0:02:26]}  d6 {[%clk 0:02:37]} 16. e3 {[%clk 0:02:25]}  Bd7 {[%clk 0:02:33]} 17. Qe2 {[%clk 0:02:24]}  Nf6 {[%clk 0:02:27]} 18. O-O-O {[%clk 0:02:22]}  O-O-O {[%clk 0:02:25]} 19. Rdg1 {[%clk 0:02:21]}  Rg8 {[%clk 0:02:25]} 20. h5 {[%clk 0:02:12]}  gxh5 {[%clk 0:01:29]} 21. Bxf6 {[%clk 0:01:49]}  Bxf6 {[%clk 0:01:30]} 22. Bxh5 {[%clk 0:01:46]}  Rxg1+ {[%clk 0:01:21]} 23. Rxg1 {[%clk 0:01:47]}  Bg5 {[%clk 0:01:12]} 24. Bf7 {[%clk 0:01:36]}  Qh4 {[%clk 0:01:05]} 25. Qf3 {[%clk 0:01:12]}  f4 {[%clk 0:01:01]} 26. Bxe6 {[%clk 0:00:27]}  Bxe6 {[%clk 0:01:00]} 27. Ne4 {[%clk 0:00:28]}  Be7 {[%clk 0:00:53]} 28. Rh1 {[%clk 0:00:28]}  Qg4 {[%clk 0:00:51]} 29. Qxg4 {[%clk 0:00:28]}  Bxg4 {[%clk 0:00:52]} 30. exf4 {[%clk 0:00:28]}  exf4 {[%clk 0:00:51]} 31. Rh7 {[%clk 0:00:29]}  Kd8 {[%clk 0:00:47]} 32. Rf7 {[%clk 0:00:29]}  Be2 {[%clk 0:00:36]} 33. Kd2 {[%clk 0:00:27]}  f3 {[%clk 0:00:34]} 34. Rg7 {[%clk 0:00:26]}  Kd7 {[%clk 0:00:30]} 35. Ng3 {[%clk 0:00:22]}  Ke6 {[%clk 0:00:28]} 36. Nxe2 {[%clk 0:00:21]}  fxe2 {[%clk 0:00:29]} 37. Kxe2 {[%clk 0:00:22]}  b5 {[%clk 0:00:30]} 38. b3 {[%clk 0:00:22]}  a5 {[%clk 0:00:30]} 39. f4 {[%clk 0:00:21]}  Bf6 {[%clk 0:00:30]} 40. Rb7 {[%clk 0:00:20]}  bxc4 {[%clk 0:00:30]} 41. bxc4 {[%clk 0:00:21]}  Kf5 {[%clk 0:00:29]} 42. Kf3 {[%clk 0:00:21]}  Bc3 {[%clk 0:00:29]} 43. Rb6 {[%clk 0:00:21]}  d5 {[%clk 0:00:29]} 44. Rxc6 {[%clk 0:00:21]}  dxc4 {[%clk 0:00:29]} 45. Rxc4 {[%clk 0:00:21]} 1-0


[Site "https://www.chess.com"]

[Event "Titled Tuesday Blitz March 14 Early 2023"]
[White "Bews, Steven"]
[Black "Sarana, Alexey"]
[WhiteFideId "2400529"]
[BlackFideId "24133795"]
[WhiteElo "2629"]
[BlackElo "2714"]
[Result "0-1"]
[Round "10"]
[TimeControl "180+2"]
[Date "2023.03.14"]
[WhiteClock "0:00:44"]
[BlackClock "0:02:00"]

1. e4 {[%clk 0:03:00]}  c5 {[%clk 0:03:00]} 2. Nf3 {[%clk 0:02:59]}  d6 {[%clk 0:03:01]} 3. d4 {[%clk 0:02:57]}  cxd4 {[%clk 0:03:02]} 4. Nxd4 {[%clk 0:02:56]}  Nf6 {[%clk 0:03:02]} 5. Nc3 {[%clk 0:02:56]}  a6 {[%clk 0:03:03]} 6. f3 {[%clk 0:02:56]}  e5 {[%clk 0:03:03]} 7. Nb3 {[%clk 0:02:56]}  Be6 {[%clk 0:03:01]} 8. Be3 {[%clk 0:02:57]}  Nbd7 {[%clk 0:03:02]} 9. Qd2 {[%clk 0:02:53]}  b5 {[%clk 0:03:02]} 10. g4 {[%clk 0:02:53]}  b4 {[%clk 0:03:00]} 11. Ne2 {[%clk 0:02:50]}  a5 {[%clk 0:02:49]} 12. Ng3 {[%clk 0:02:37]}  Nb6 {[%clk 0:02:44]} 13. Bb5+ {[%clk 0:02:35]}  Nfd7 {[%clk 0:02:45]} 14. O-O {[%clk 0:02:31]}  Be7 {[%clk 0:02:42]} 15. Bc6 {[%clk 0:02:04]}  Nc4 {[%clk 0:02:36]} 16. Qf2 {[%clk 0:02:03]}  Nxe3 {[%clk 0:02:33]} 17. Bxa8 {[%clk 0:01:49]}  Nxf1 {[%clk 0:02:32]} 18. Rxf1 {[%clk 0:01:27]}  Qxa8 {[%clk 0:02:28]} 19. Nf5 {[%clk 0:01:27]}  Bxf5 {[%clk 0:02:28]} 20. gxf5 {[%clk 0:01:28]}  O-O {[%clk 0:02:28]} 21. Kh1 {[%clk 0:01:28]}  a4 {[%clk 0:02:28]} 22. Nd2 {[%clk 0:01:27]}  Qc6 {[%clk 0:02:29]} 23. Rg1 {[%clk 0:01:27]}  Kh8 {[%clk 0:02:27]} 24. Nf1 {[%clk 0:01:25]}  d5 {[%clk 0:02:26]} 25. exd5 {[%clk 0:01:20]}  Qxd5 {[%clk 0:02:26]} 26. Ne3 {[%clk 0:01:21]}  Qc6 {[%clk 0:02:26]} 27. Qg2 {[%clk 0:01:19]}  g6 {[%clk 0:02:26]} 28. Ng4 {[%clk 0:01:18]}  Bc5 {[%clk 0:02:23]} 29. fxg6 {[%clk 0:01:11]}  Qxg6 {[%clk 0:02:19]} 30. Re1 {[%clk 0:01:07]}  Bd4 {[%clk 0:02:06]} 31. Qd2 {[%clk 0:00:58]}  f5 {[%clk 0:02:03]} 32. Ne3 {[%clk 0:00:51]}  Rg8 {[%clk 0:02:02]} 33. Ng2 {[%clk 0:00:44]}  Nf6 {[%clk 0:02:01]} 34. c3 {[%clk 0:00:43]}  bxc3 {[%clk 0:01:59]} 35. bxc3 {[%clk 0:00:44]}  Bxc3 {[%clk 0:02:00]} 0-1


[Site "https://www.chess.com"]

[Event "Titled Tuesday Blitz March 14 Early 2023"]
[White "Atakhan, Abtin"]
[Black "Vokhidov, Shamsiddin"]
[WhiteFideId "22502203"]
[BlackFideId "14204223"]
[WhiteElo "2008"]
[BlackElo "2570"]
[Result "0-1"]
[Round "10"]
[TimeControl "180+2"]
[Date "2023.03.14"]
[WhiteClock "0:00:02"]
[BlackClock "0:00:17"]

1. c4 {[%clk 0:03:00]}  e5 {[%clk 0:03:00]} 2. Nc3 {[%clk 0:03:01]}  Nf6 {[%clk 0:03:00]} 3. Nf3 {[%clk 0:03:01]}  Nc6 {[%clk 0:03:01]} 4. e4 {[%clk 0:03:02]}  Bb4 {[%clk 0:03:01]} 5. d3 {[%clk 0:03:02]}  d6 {[%clk 0:03:01]} 6. a3 {[%clk 0:03:03]}  Bxc3+ {[%clk 0:03:01]} 7. bxc3 {[%clk 0:03:03]}  O-O {[%clk 0:03:02]} 8. g3 {[%clk 0:03:03]}  Rb8 {[%clk 0:03:00]} 9. Bg2 {[%clk 0:03:01]}  b5 {[%clk 0:03:00]} 10. cxb5 {[%clk 0:02:58]}  Rxb5 {[%clk 0:03:01]} 11. O-O {[%clk 0:02:57]}  h6 {[%clk 0:02:59]} 12. h3 {[%clk 0:02:54]}  Be6 {[%clk 0:02:58]} 13. Qa4 {[%clk 0:02:49]}  Qb8 {[%clk 0:02:29]} 14. c4 {[%clk 0:02:47]}  Ra5 {[%clk 0:02:26]} 15. Qc2 {[%clk 0:02:38]}  Ra6 {[%clk 0:02:25]} 16. Be3 {[%clk 0:02:37]}  Qc8 {[%clk 0:02:21]} 17. Kh2 {[%clk 0:02:36]}  Nd7 {[%clk 0:02:21]} 18. Qc3 {[%clk 0:02:14]}  Nc5 {[%clk 0:02:19]} 19. Bxc5 {[%clk 0:02:11]}  dxc5 {[%clk 0:02:20]} 20. Nxe5 {[%clk 0:02:12]}  Nd4 {[%clk 0:02:20]} 21. f4 {[%clk 0:01:57]}  Rb6 {[%clk 0:02:12]} 22. f5 {[%clk 0:01:49]}  Bd7 {[%clk 0:02:11]} 23. Rab1 {[%clk 0:01:41]}  Qd8 {[%clk 0:02:11]} 24. Nf3 {[%clk 0:01:28]}  Nxf3+ {[%clk 0:02:03]} 25. Bxf3 {[%clk 0:01:29]}  Bc6 {[%clk 0:02:01]} 26. Rbd1 {[%clk 0:01:25]}  Re8 {[%clk 0:01:59]} 27. Bh5 {[%clk 0:01:16]}  Ba4 {[%clk 0:01:35]} 28. Rd2 {[%clk 0:00:59]}  Rb3 {[%clk 0:01:32]} 29. Qa5 {[%clk 0:00:59]}  Bc6 {[%clk 0:01:24]} 30. Qxc5 {[%clk 0:00:40]}  Qg5 {[%clk 0:01:17]} 31. Rff2 {[%clk 0:00:33]}  Bxe4 {[%clk 0:01:10]} 32. Qxc7 {[%clk 0:00:19]}  Rf8 {[%clk 0:00:41]} 33. dxe4 {[%clk 0:00:17]}  Qxh5 {[%clk 0:00:41]} 34. Qf4 {[%clk 0:00:17]}  f6 {[%clk 0:00:35]} 35. Rc2 {[%clk 0:00:16]}  Qd1 {[%clk 0:00:32]} 36. Rc1 {[%clk 0:00:14]}  Qd4 {[%clk 0:00:31]} 37. Rd2 {[%clk 0:00:14]}  Qc5 {[%clk 0:00:30]} 38. Rcc2 {[%clk 0:00:08]}  Rb1 {[%clk 0:00:28]} 39. Qf2 {[%clk 0:00:09]}  Qxa3 {[%clk 0:00:25]} 40. c5 {[%clk 0:00:09]}  Qa4 {[%clk 0:00:24]} 41. Re2 {[%clk 0:00:08]}  Rc8 {[%clk 0:00:19]} 42. h4 {[%clk 0:00:06]}  Qa1 {[%clk 0:00:17]} 43. c6 {[%clk 0:00:05]}  Rf1 {[%clk 0:00:16]} 44. Qc5 {[%clk 0:00:02]}  Rh1+ {[%clk 0:00:16]} 45. Kg2 {[%clk 0:00:02]}  Qf1# {[%clk 0:00:17]} 0-1


[Site "https://www.chess.com"]